bitfinex/quotes_BTCUSD_20250331
["timestamp","ask_amount","ask_price","bid_price","bid_amount"]
[1743389953741,0.67512235,82126.0,82125.0,0.0003364]
[1743389954291,0.639904,82126.0,82125.0,0.0003364]
[1743389954640,0.67512841,82126.0,82125.0,0.0003364]
[1743389954841,0.639904,82126.0,82125.0,0.0003364]
[1743389955392,0.67512853,82126.0,82125.0,0.0003364]
[1743389955559,0.79541336,82126.0,82125.0,0.0003364]
[1743389956094,0.81449473,82126.0,82125.0,0.0003364]
[1743389956443,0.6942099,82126.0,82125.0,0.0003364]
[1743389957631,0.67512853,82126.0,82125.0,0.0003364]
[1743389960506,0.69420934,82126.0,82125.0,0.0003364]
[1743389960899,0.61300934,82126.0,82125.0,0.0003364]
[1743389961866,0.57778481,82126.0,82125.0,0.0003364]
[1743389962696,0.61301631,82126.0,82125.0,0.0003364]
[1743389963325,0.57778481,82126.0,82125.0,0.0003364]
[1743389963611,0.61301589,82126.0,82125.0,0.0003364]
[1743389963843,0.57778481,82126.0,82125.0,0.0003364]
[1743389964366,0.61301161,82126.0,82125.0,0.0003364]
[1743389965766,0.57778481,82126.0,82125.0,0.0003364]
[1743389968398,0.61301183,82126.0,82125.0,0.0003364]
[1743389968598,0.57778481,82126.0,82125.0,0.0003364]
[1743389969513,0.61301443,82126.0,82125.0,0.0003364]
[1743389969948,0.57778481,82126.0,82125.0,0.0003364]
[1743389970304,0.61301576,82126.0,82125.0,0.0003364]
[1743389970646,0.59393495,82126.0,82125.0,0.0003364]
[1743389973325,0.61301525,82126.0,82125.0,0.0003364]
[1743389977575,0.6458136,82126.0,82125.0,0.0003364]
[1743389978227,0.61301525,82126.0,82125.0,0.0003364]
[1743389983934,0.59393495,82126.0,82125.0,0.0003364]
[1743389984505,0.55571,82124.0,82123.0,0.00014122]
[1743389984706,0.59094095,82124.0,82123.0,0.00014122]
[1743389986028,0.59294095,82124.0,82123.0,0.00014122]
[1743389986654,0.61202097,82124.0,82123.0,0.00014122]
[1743389986855,0.7323058,82124.0,82123.0,0.00014122]
[1743389987060,0.71322578,82124.0,82123.0,0.00014122]
[1743389987430,0.59294095,82124.0,82123.0,0.00014122]
[1743389990053,0.61202098,82124.0,82123.0,0.00014122]
[1743389991259,0.61202098,82124.0,82123.0,0.13034122]
[1743389992131,0.61102098,82124.0,82123.0,0.13034122]
[1743389992527,0.61002098,82124.0,82123.0,0.13234122]
[1743389993228,0.27479003,82124.0,82123.0,0.13334122]
[1743389995070,0.57479003,82124.0,82123.0,0.13334122]
[1743389997392,0.55571,82124.0,82123.0,0.13334122]
[1743389999346,0.3,82125.0,82123.0,0.13334122]
[1743389999555,0.25571,82124.0,82123.0,0.13334122]
[1743389999753,0.25571,82124.0,82123.0,0.13367762]
[1743390000165,0.27478862,82124.0,82123.0,0.13367762]
[1743390000366,0.27478862,82124.0,82123.0,0.13267762]
[1743390000569,0.31357932,82124.0,82123.0,0.00347762]
[1743390000791,0.31357932,82124.0,82123.0,0.00147762]
[1743390001012,0.27478862,82124.0,82123.0,0.00047762]
[1743390001210,0.27478862,82124.0,82123.0,0.00247762]
[1743390001411,0.27478862,82124.0,82123.0,0.00347762]
[1743390001824,0.27478862,82124.0,82123.0,0.00147762]
[1743390002043,0.25571,82124.0,82123.0,0.00147762]
[1743390002192,0.001,82124.0,82123.0,0.12927762]
[1743390002387,0.001,82124.0,82123.0,0.39791838]
[1743390002586,0.0001682,82126.0,82123.0,0.31591838]
[1743390002860,0.0001682,82126.0,82124.0,0.081]
[1743390003038,0.0001682,82126.0,82124.0,0.08]
[1743390003239,0.0123442,82126.0,82125.0,0.14492]
[1743390003444,0.255707,82125.0,82124.0,0.08]
[1743390003597,0.255707,82125.0,82123.0,0.04727762]
[1743390003598,0.312176,82124.0,82123.0,0.04727762]
[1743390003811,0.312176,82124.0,82123.0,0.19319762]
[1743390004012,0.312176,82124.0,82123.0,0.19219762]
[1743390004941,0.012176,82124.0,82123.0,0.19419762]
[1743390006168,0.012176,82124.0,82123.0,0.19519762]
[1743390007343,0.0001682,82126.0,82123.0,0.30381738]
[1743390007542,0.0001682,82126.0,82125.0,0.093176]
[1743390008163,0.0001682,82126.0,82125.0,0.139976]
[1743390009266,0.0001682,82126.0,82125.0,0.140976]
[1743390009462,0.0001682,82126.0,82125.0,0.139976]
[1743390009852,0.0001682,82126.0,82125.0,0.141976]
[1743390010138,0.01924406,82126.0,82125.0,0.141976]
[1743390010321,0.01924406,82126.0,82125.0,0.14441116]
[1743390010540,0.01924406,82126.0,82125.0,0.141976]
[1743390010948,0.01924406,82126.0,82125.0,0.144976]
[1743390011114,0.01924406,82126.0,82125.0,0.25072746]
[1743390011316,0.01924406,82126.0,82125.0,0.24772746]
[1743390011720,0.01924406,82126.0,82125.0,0.25072746]
[1743390011925,0.01924406,82126.0,82125.0,0.144976]
[1743390015152,0.01923951,82132.0,82131.0,0.4430438]
[1743390016009,0.01923951,82132.0,82131.0,0.5909238]
[1743390016965,0.01923951,82132.0,82131.0,0.5949238]
[1743390017190,0.0001682,82132.0,82131.0,0.5949238]
[1743390018195,0.0001682,82132.0,82131.0,0.5948838]
[1743390018593,0.0001682,82132.0,82131.0,0.43550295]
[1743390018796,0.0001682,82132.0,82131.0,0.58034295]
[1743390020147,0.01923847,82132.0,82131.0,0.58034295]
[1743390020368,0.01923847,82132.0,82131.0,0.43550295]
[1743390020722,0.01923847,82132.0,82131.0,0.534228]
[1743390021575,0.01923847,82132.0,82131.0,0.389388]
[1743390021776,0.01923847,82132.0,82131.0,0.534228]
[1743390024939,0.01923847,82132.0,82131.0,1.166788]
[1743390026111,0.01923847,82132.0,82131.0,0.9111]
[1743390026536,0.01923847,82132.0,82131.0,1.02903064]
[1743390027103,0.0001682,82132.0,82131.0,1.02903064]
[1743390028374,0.3001682,82132.0,82131.0,0.63956]
[1743390028544,0.3123432,82132.0,82131.0,0.7844]
[1743390029402,0.3123432,82132.0,82131.0,0.7804]
[1743390029605,0.3123432,82132.0,82131.0,0.7774]
[1743390029755,0.3123432,82132.0,82131.0,0.7804]
[1743390029954,0.3123432,82132.0,82131.0,0.7824]
[1743390030160,0.33141784,82132.0,82131.0,0.7824]
[1743390030359,0.33141784,82132.0,82131.0,0.63756]
[1743390030558,0.33141784,82132.0,82131.0,0.7824]
[1743390032540,0.34069638,82132.0,82131.0,0.7824]
[1743390034957,0.43931106,82132.0,82111.0,0.0489]
[1743390035156,0.312178,82109.0,82108.0,0.6326]
[1743390035515,0.312178,82109.0,82108.0,0.77744]
[1743390035967,0.33125887,82109.0,82108.0,0.77744]
[1743390036398,0.33125887,82109.0,82108.0,0.77844]
[1743390037227,0.312178,82109.0,82108.0,0.78044]
[1743390037773,0.3212316,82109.0,82108.0,0.78044]
[1743390037978,0.44151643,82109.0,82108.0,0.6356]
[1743390038181,0.3212316,82109.0,82108.0,0.6356]
[1743390038712,0.3195916,82109.0,82108.0,0.6356]
[1743390039924,0.3195916,82109.0,82108.0,0.003]
[1743390040125,0.33867259,82109.0,82108.0,0.003]
[1743390041300,0.02813459,82109.0,82108.0,0.003]
[1743390041518,0.01908099,82109.0,82108.0,0.0519]
[1743390041727,0.27483699,82109.0,82108.0,0.0519]
[1743390041927,0.27483699,82109.0,82108.0,0.0499]
[1743390042125,0.27483699,82109.0,82108.0,0.0489]
[1743390042331,0.27583699,82109.0,82108.0,0.0489]
[1743390043136,0.27483699,82109.0,82108.0,0.0489]
[1743390043332,0.27483699,82109.0,82108.0,0.0509]
[1743390045549,0.57483699,82109.0,82108.0,0.0509]
[1743390047075,0.555756,82109.0,82108.0,0.0509]
[1743390047922,0.555756,82109.0,82108.0,0.0512364]
[1743390049835,0.555756,82109.0,82108.0,0.0023364]
[1743390050363,0.57483601,82109.0,82108.0,0.1471764]
[1743390052777,0.68438226,82109.0,82108.0,0.0023364]
[1743390052985,0.57483601,82109.0,82108.0,0.0023364]
[1743390054135,0.57583601,82109.0,82108.0,0.0023364]
[1743390054530,0.57583601,82109.0,82108.0,0.0003364]
[1743390055210,0.69612084,82109.0,82108.0,0.0003364]
[1743390055347,0.69512084,82109.0,82108.0,0.0003364]
[1743390055540,0.57583601,82109.0,82108.0,0.0003364]
[1743390055967,0.57483601,82109.0,82108.0,0.0003364]
[1743390056207,0.57583601,82109.0,82108.0,0.0003364]
[1743390057392,0.556756,82109.0,82108.0,0.0003364]
[1743390060153,0.57583817,82109.0,82108.0,0.0003364]
[1743390060926,0.6962913,82109.0,82108.0,0.0003364]
[1743390062437,0.57600647,82109.0,82108.0,0.0003364]
[1743390065257,0.61479717,82109.0,82108.0,0.0003364]
[1743390066058,0.73989174,82109.0,82108.0,0.0003364]
[1743390066404,0.72580957,82109.0,82108.0,0.0003364]
[1743390066836,1.36215057,82109.0,82108.0,4e-07]
[1743390067111,0.8450944,82109.0,82108.0,4e-07]
[1743390067320,0.8460944,82109.0,82108.0,4e-07]
[1743390067524,0.8460944,82109.0,82089.0,0.0003364]
[1743390067525,0.01218,82096.0,82089.0,0.0003364]
[1743390067760,0.555816,82090.0,82089.0,0.0003364]
[1743390067976,0.6213637,82090.0,82089.0,0.0003364]
[1743390068543,0.67832713,82090.0,82089.0,0.0003364]
[1743390068751,0.63962761,82090.0,82089.0,0.0003364]
[1743390068959,0.555834,82084.0,82076.0,0.63288]
[1743390069175,0.63948506,82084.0,82076.0,0.63288]
[1743390069615,0.65857297,82084.0,82076.0,0.63288]
[1743390069879,0.555872,82072.0,82071.0,0.004]
[1743390070474,0.3,82072.0,82071.0,0.004]
[1743390070636,0.312184,82072.0,82071.0,0.0816]
[1743390070795,0.30908256,82072.0,82071.0,0.0816]
[1743390071004,0.31908843,82072.0,82071.0,0.142884]
[1743390071201,0.01908843,82072.0,82071.0,0.142884]
[1743390071405,0.01908843,82072.0,82071.0,0.143884]
[1743390071620,0.01908843,82072.0,82071.0,0.14632061]
[1743390071845,0.01908843,82072.0,82071.0,0.23674072]
[1743390072050,0.01908843,82072.0,82071.0,0.23430411]
[1743390072253,0.02008843,82072.0,82071.0,0.145884]
[1743390072696,0.02008843,82072.0,82071.0,0.1460523]
[1743390073850,0.02108843,82072.0,82071.0,0.1510523]
[1743390074176,0.02008843,82072.0,82071.0,0.1480523]
[1743390074604,0.02108843,82072.0,82071.0,0.1490523]
[1743390075895,0.02108843,82072.0,82071.0,0.7820523]
[1743390077010,0.002,82072.0,82071.0,0.7820523]
[1743390078183,0.002,82072.0,82071.0,0.90233713]
[1743390079545,0.002,82072.0,82071.0,0.7820523]
[1743390079970,0.02108516,82072.0,82071.0,0.7820523]
[1743390081315,0.02108516,82072.0,82071.0,0.9268923]
[1743390087170,0.002,82072.0,82071.0,0.9268923]
[1743390088559,1e-06,82072.0,82071.0,0.9268923]
[1743390088840,1e-06,82072.0,82071.0,1.18200281]
[1743390089010,0.0003366,82083.0,82082.0,0.38704]
[1743390089211,0.0003366,82083.0,82082.0,0.52186568]
[1743390089792,0.0003366,82083.0,82082.0,0.51986568]
[1743390090004,0.0003366,82083.0,82082.0,0.55353558]
[1743390090208,0.01941777,82083.0,82082.0,0.55353558]
[1743390090450,7.7e-07,82083.0,82082.0,0.55353558]
[1743390090668,7.7e-07,82083.0,82082.0,1.00783558]
[1743390090853,9.118e-05,82090.0,82089.0,0.255819]
[1743390091058,9.118e-05,82090.0,82089.0,0.76975187]
[1743390091633,0.01917072,82090.0,82089.0,0.76975187]
[1743390092672,0.01917072,82090.0,82089.0,0.77575187]
[1743390093047,0.01917072,82090.0,82089.0,0.78175187]
[1743390093273,0.01794633,82109.0,82108.0,0.38696]
[1743390093274,0.0001683,82109.0,82108.0,0.38696]
[1743390093469,0.0001683,82109.0,82108.0,1.16468]
[1743390094569,0.0001683,82109.0,82108.0,1.29950568]
[1743390094773,0.0001683,82109.0,82108.0,1.30250568]
[1743390094978,0.01924435,82109.0,82108.0,1.34017558]
[1743390095665,0.01924435,82109.0,82108.0,1.33617558]
[1743390096102,0.0001682,82132.0,82131.0,0.337188]
[1743390096311,0.0001682,82132.0,82131.0,0.5474242]
[1743390096423,0.01783046,82132.0,82131.0,0.5474242]
[1743390097309,0.01797161,82132.0,82131.0,0.5474242]
[1743390097662,0.01897161,82132.0,82131.0,0.5474242]
[1743390097991,0.01897161,82132.0,82131.0,0.4659242]
[1743390098685,0.01871577,82132.0,82131.0,0.4659242]
[1743390099365,0.03778945,82132.0,82131.0,0.4659242]
[1743390100369,0.03778945,82132.0,82125.0,0.337207]
[1743390100589,0.03778945,82132.0,82130.0,0.012175]
[1743390100806,0.012176,82128.0,82122.0,0.0497]
[1743390101000,0.243528,82126.0,82123.0,0.14476]
[1743390101198,0.012176,82127.0,82123.0,0.14476]
[1743390101433,0.3,82127.0,82123.0,0.400472]
[1743390101634,0.3,82127.0,82123.0,0.388296]
[1743390101878,0.012176,82124.0,82123.0,0.14476]
[1743390102022,0.55571,82124.0,82123.0,0.14476]
[1743390102407,0.3,82119.0,82113.0,0.255744]
[1743390102616,0.012178,82111.0,82108.0,0.63292]
[1743390102868,0.012178,82114.0,82109.0,0.14476]
[1743390103375,0.01907756,82111.0,82109.0,0.14476]
[1743390103681,0.012178,82110.0,82109.0,0.14476]
[1743390104038,0.255753,82110.0,82109.0,0.14476]
[1743390104441,0.255753,82110.0,82108.0,0.63292]
[1743390104442,0.312178,82109.0,82108.0,0.63292]
[1743390104643,0.312178,82109.0,82108.0,0.77764]
[1743390105947,0.312178,82109.0,82108.0,0.78064]
[1743390106358,0.312178,82109.0,82108.0,0.63992]
[1743390106538,0.312178,82109.0,82108.0,0.78464]
[1743390107201,0.3,82111.0,82108.0,0.8886815]
[1743390107396,0.3,82111.0,82108.0,1.1322615]
[1743390107702,0.3,82111.0,82108.0,0.78464]
[1743390108059,0.0003366,82109.0,82108.0,0.78464]
[1743390108290,0.0003366,82109.0,82108.0,1.025221]
[1743390108500,0.0003366,82109.0,82108.0,1.0374]
[1743390108709,0.0003366,82109.0,82108.0,1.1217]
[1743390108930,0.0003366,82109.0,82108.0,1.23998483]
[1743390109263,0.0003366,82109.0,82108.0,1.28568483]
[1743390109432,0.0003366,82109.0,82108.0,1.3163244]
[1743390109802,0.0003366,82109.0,82108.0,1.3133244]
[1743390110021,0.01941267,82109.0,82108.0,1.3133244]
[1743390110227,0.01941267,82109.0,82108.0,1.3173244]
[1743390110842,0.01941267,82109.0,82108.0,1.3133244]
[1743390111247,0.01941267,82109.0,82108.0,1.3103244]
[1743390111456,0.01941267,82109.0,82108.0,1.33086525]
[1743390111613,0.01941267,82109.0,82108.0,1.45415008]
[1743390111814,0.01941267,82109.0,82108.0,1.45115008]
[1743390112264,0.01941267,82109.0,82108.0,1.31143008]
[1743390112464,0.01941267,82109.0,82108.0,1.20103957]
[1743390112819,0.01941267,82109.0,82108.0,1.1764]
[1743390113036,0.01941267,82109.0,82108.0,1.0444]
[1743390115417,0.01941267,82109.0,82108.0,1.1267]
[1743390115623,0.01941267,82109.0,82108.0,1.24698483]
[1743390116866,0.01941267,82109.0,82108.0,1.43151051]
[1743390117091,0.0003366,82109.0,82108.0,1.43151051]
[1743390119290,0.0003366,82109.0,82108.0,1.43167871]
[1743390122483,0.00014115,82132.0,82131.0,0.255688]
[1743390122666,0.00014115,82132.0,82131.0,0.4149602]
[1743390123205,0.01921432,82132.0,82131.0,0.4149602]
[1743390124952,0.01921432,82132.0,82131.0,0.45333498]
[1743390125094,0.01921432,82132.0,82131.0,0.45733498]
[1743390125301,0.01921432,82132.0,82131.0,0.45333498]
[1743390125702,0.01921432,82132.0,82131.0,0.45833498]
[1743390125905,0.01921432,82132.0,82131.0,0.45333498]
[1743390126427,0.01921432,82132.0,82131.0,0.45933498]
[1743390127524,0.01921432,82132.0,82131.0,0.46533498]
[1743390127921,0.01921432,82132.0,82131.0,0.58561981]
[1743390130278,0.01921432,82132.0,82131.0,0.30606278]
[1743390130476,0.01921432,82132.0,82131.0,1.06872193]
[1743390131744,0.01938262,82132.0,82131.0,0.900248]
[1743390132021,0.01938262,82132.0,82131.0,1.044888]
[1743390132672,0.01938262,82132.0,82131.0,1.038888]
[1743390132819,0.01938262,82132.0,82131.0,1.15917283]
[1743390133021,0.01938262,82132.0,82131.0,1.16517283]
[1743390133983,0.01938262,82132.0,82131.0,1.15917283]
[1743390134181,0.01938262,82132.0,82131.0,1.16417283]
[1743390135067,0.01938262,82132.0,82131.0,0.655735]
[1743390135283,0.01938262,82132.0,82131.0,1.043888]
[1743390136561,0.01938262,82132.0,82131.0,1.120188]
[1743390136761,0.00030945,82132.0,82131.0,1.120188]
[1743390137190,0.00030945,82132.0,82131.0,1.114188]
[1743390137365,0.00030945,82132.0,82131.0,1.23447283]
[1743390137564,0.00030945,82132.0,82131.0,1.23547283]
[1743390137766,0.00030945,82132.0,82131.0,1.24147283]
[1743390138366,0.00030945,82132.0,82131.0,1.30361368]
[1743390139790,0.01938125,82132.0,82131.0,1.30361368]
[1743390140683,0.01938125,82132.0,82131.0,1.42389851]
[1743390144229,0.01938125,82132.0,82131.0,1.84319851]
[1743390144430,0.0001684,82134.0,82133.0,0.384582]
[1743390144431,6.5e-07,82134.0,82133.0,0.384582]
[1743390144656,5.1e-07,82134.0,82133.0,0.54440768]
[1743390145583,5.1e-07,82134.0,82133.0,0.55040768]
[1743390147107,5.1e-07,82134.0,82133.0,0.55540768]
[1743390147919,5.1e-07,82134.0,82133.0,0.97470768]
[1743390148120,5.1e-07,82134.0,82133.0,1.09499251]
[1743390150159,5.1e-07,82134.0,82133.0,1.06499251]
[1743390150362,5.1e-07,82134.0,82133.0,0.685982]
[1743390150561,5.1e-07,82134.0,82133.0,0.266682]
[1743390150692,5.1e-07,82134.0,82133.0,0.411242]
[1743390152024,0.01907401,82134.0,82133.0,0.411242]
[1743390153706,0.01907401,82134.0,82133.0,0.266682]
[1743390153959,0.01907401,82134.0,82133.0,0.411242]
[1743390154370,0.01907401,82134.0,82133.0,0.53152683]
[1743390156377,0.01907401,82134.0,82133.0,0.411242]
[1743390156581,5.1e-07,82134.0,82133.0,0.411242]
[1743390157190,5.1e-07,82134.0,82133.0,0.4115784]
[1743390157628,0.00016871,82134.0,82133.0,0.4115784]
[1743390158456,0.00016871,82134.0,82133.0,0.3994034]
[1743390158662,0.38832518,82141.0,82133.0,0.53186323]
[1743390158912,0.38832518,82141.0,82136.0,0.255671]
[1743390159296,0.3,82142.0,82138.0,0.243492]
[1743390160040,0.31907369,82142.0,82141.0,0.243483]
[1743390160243,0.01907369,82142.0,82141.0,0.9027292]
[1743390161801,0.01907369,82142.0,82141.0,0.9097292]
[1743390166219,0.01907369,82142.0,82141.0,0.895137]
[1743390167215,0.01592708,82155.0,82150.0,0.255627]
[1743390167417,0.5557813,82156.0,82151.0,0.14452]
[1743390168220,0.012172,82155.0,82151.0,0.14452]
[1743390168557,0.255613,82156.0,82151.0,0.14452]
[1743390169227,0.27097845,82156.0,82151.0,0.14452]
[1743390169556,0.012172,82155.0,82151.0,0.14452]
[1743390169705,0.012172,82154.0,82151.0,0.14452]
[1743390170115,0.03124376,82154.0,82151.0,0.14552]
[1743390170882,0.01907176,82154.0,82151.0,0.14452]
[1743390171240,0.26251676,82154.0,82151.0,0.14552]
[1743390171442,0.24345,82153.0,82151.0,0.14552]
[1743390172361,0.3,82152.0,82151.0,0.14552]
[1743390172612,0.312172,82152.0,82151.0,0.14552]
[1743390172811,0.3,82152.0,82151.0,0.14552]
[1743390172984,0.3,82152.0,82151.0,0.14452]
[1743390173354,0.3,82152.0,82151.0,0.14552]
[1743390173940,0.3,82153.0,82151.0,0.14652]
[1743390174262,0.3,82153.0,82151.0,0.14452]
[1743390174683,0.255623,82152.0,82151.0,0.003]
[1743390174900,0.255623,82152.0,82151.0,0.14652]
[1743390175245,0.255623,82152.0,82151.0,0.002]
[1743390175246,0.74366862,82152.0,82151.0,0.002]
[1743390175460,0.7202137,82152.0,82151.0,0.002]
[1743390175671,0.555679,82134.0,82126.0,0.63248]
[1743390175871,0.555679,82134.0,82133.0,0.1448564]
[1743390176495,0.57475357,82134.0,82133.0,0.1448564]
[1743390177076,0.57475357,82134.0,82133.0,0.1468564]
[1743390177223,0.57475357,82134.0,82133.0,0.1498564]
[1743390177428,0.57475357,82134.0,82133.0,0.0053364]
[1743390177699,0.63292235,82134.0,82133.0,0.0053364]
[1743390178145,0.61384778,82134.0,82133.0,0.0053364]
[1743390178546,0.80923261,82134.0,82133.0,0.0053364]
[1743390179402,0.80923261,82134.0,82133.0,0.0003364]
[1743390179809,0.68894778,82134.0,82133.0,0.0033364]
[1743390180054,0.68894778,82134.0,82133.0,0.0023364]
[1743390180220,0.68894778,82134.0,82133.0,0.0003364]
[1743390180655,0.69094778,82134.0,82133.0,0.0003364]
[1743390181028,0.68894778,82134.0,82133.0,0.0003364]
[1743390181229,0.70802561,82134.0,82133.0,0.0003364]
[1743390182097,0.71002561,82134.0,82133.0,0.0003364]
[1743390183298,0.70802561,82134.0,82133.0,0.0003364]
[1743390183496,0.58382561,82134.0,82133.0,0.0003364]
[1743390183790,0.58482561,82134.0,82133.0,0.0003364]
[1743390183992,0.57575683,82134.0,82133.0,0.0003364]
[1743390184218,0.33325283,82134.0,82133.0,0.0003364]
[1743390185170,0.33125283,82134.0,82133.0,0.0003364]
[1743390185584,0.01907783,82134.0,82133.0,0.0003364]
[1743390186816,0.01907783,82134.0,82133.0,0.0033364]
[1743390187030,0.555679,82134.0,82133.0,0.0033364]
[1743390187227,0.555679,82134.0,82133.0,0.1478564]
[1743390187427,0.555679,82134.0,82133.0,0.1448564]
[1743390187658,0.555679,82134.0,82133.0,0.1468564]
[1743390187863,0.555679,82134.0,82133.0,0.1498564]
[1743390189865,0.3,82134.0,82133.0,0.1498564]
[1743390190072,0.3,82134.0,82133.0,0.28764204]
[1743390190275,0.31907517,82134.0,82133.0,0.28764204]
[1743390190591,0.31907517,82134.0,82133.0,0.2726564]
[1743390190793,0.57475417,82134.0,82133.0,0.1498564]
[1743390193355,0.33125017,82134.0,82133.0,0.1498564]
[1743390194304,0.31907517,82134.0,82133.0,0.1498564]
[1743390194695,0.31907517,82134.0,82133.0,0.0053364]
[1743390194898,0.31907517,82134.0,82133.0,0.1498164]
[1743390196535,0.33125017,82134.0,82133.0,0.1498164]
[1743390197160,0.312175,82134.0,82133.0,0.1498164]
[1743390198676,0.3,82134.0,82133.0,0.16479804]
[1743390198904,0.3,82134.0,82133.0,0.2327164]
[1743390199322,0.0001682,82151.0,82135.0,0.012175]
[1743390199521,0.0001682,82151.0,82141.0,0.255657]
[1743390199734,0.0001682,82151.0,82141.0,0.338557]
[1743390199938,0.0001682,82151.0,82141.0,0.4040267]
[1743390200107,0.01924006,82142.0,82141.0,0.4040267]
[1743390200697,0.01924006,82142.0,82141.0,0.1483697]
[1743390201103,0.01924006,82142.0,82141.0,0.0829]
[1743390201939,0.01924006,82142.0,82141.0,0.22734]
[1743390202909,0.01924006,82142.0,82141.0,0.22834]
[1743390203466,0.01924006,82142.0,82141.0,0.240514]
[1743390203666,0.01924006,82142.0,82141.0,0.22734]
[1743390203888,0.01924006,82142.0,82141.0,0.0849]
[1743390204099,0.01924006,82142.0,82141.0,0.22934]
[1743390204300,0.01924006,82142.0,82141.0,0.2593215]
[1743390204565,0.01924006,82142.0,82141.0,0.2573215]
[1743390204675,0.01924006,82142.0,82141.0,0.2684955]
[1743390205090,0.01924006,82142.0,82141.0,0.239514]
[1743390205290,0.01924006,82142.0,82141.0,0.241514]
[1743390205847,0.01924006,82142.0,82141.0,0.244514]
[1743390208842,0.0001682,82142.0,82141.0,0.244514]
[1743390211894,0.01923989,82142.0,82141.0,0.244514]
[1743390212104,0.01923989,82142.0,82141.0,0.3504946]
[1743390214667,0.01923989,82142.0,82141.0,0.53232028]
[1743390215022,0.01923989,82142.0,82141.0,1.16480028]
[1743390215232,0.01923989,82142.0,82141.0,1.16980028]
[1743390215667,0.01923989,82142.0,82141.0,1.16680028]
[1743390216078,0.01923989,82142.0,82141.0,1.16980028]
[1743390216741,0.01923989,82142.0,82141.0,1.18752875]
[1743390217091,0.0001682,82142.0,82141.0,1.18952875]
[1743390217296,0.0001682,82142.0,82141.0,1.18252875]
[1743390217592,0.0001682,82142.0,82141.0,1.18852875]
[1743390218152,0.0001682,82142.0,82141.0,1.05962307]
[1743390218299,0.0001682,82142.0,82141.0,1.06816392]
[1743390218503,0.0001682,82142.0,82141.0,1.06216392]
[1743390218823,0.29931377,82160.0,82148.0,0.255633]
[1743390219024,0.29945482,82160.0,82149.0,0.02889643]
[1743390219471,0.0001682,82151.0,82149.0,0.02889643]
[1743390219663,0.0001682,82151.0,82148.0,0.255633]
[1743390219869,0.0001682,82151.0,82149.0,0.6324]
[1743390220170,0.01923676,82151.0,82149.0,0.6324]
[1743390221463,0.01923676,82151.0,82149.0,0.6444]
[1743390221861,0.01923676,82151.0,82149.0,0.6384]
[1743390222244,0.01923676,82151.0,82149.0,0.6444]
[1743390224609,0.01923676,82151.0,82149.0,0.90003]
[1743390224820,0.01923676,82151.0,82150.0,0.21189107]
[1743390225121,0.01923676,82151.0,82150.0,0.22447321]
[1743390225321,0.01923676,82151.0,82150.0,0.27137321]
[1743390225578,0.01923676,82151.0,82150.0,0.28591406]
[1743390225703,0.01923676,82151.0,82150.0,0.40619889]
[1743390226808,0.01923676,82151.0,82150.0,0.41219889]
[1743390227108,0.0001682,82151.0,82150.0,0.40619889]
[1743390227319,0.0001682,82151.0,82150.0,0.39118251]
[1743390227467,0.0001682,82151.0,82150.0,0.39718251]
[1743390227856,0.0001682,82151.0,82150.0,0.41183817]
[1743390228065,0.0001682,82151.0,82150.0,0.41783817]
[1743390228270,0.0001682,82151.0,82150.0,0.40318251]
[1743390228509,0.0001682,82151.0,82150.0,0.39718251]
[1743390228890,0.0001682,82151.0,82150.0,0.42721768]
[1743390229304,0.0001682,82151.0,82150.0,0.292392]
[1743390230222,0.01923706,82151.0,82150.0,0.292392]
[1743390231397,0.01923706,82151.0,82150.0,0.28022]
[1743390231604,0.01923706,82151.0,82150.0,0.15632]
[1743390232435,0.01923706,82151.0,82150.0,0.1566564]
[1743390232658,0.01923706,82151.0,82150.0,0.1446564]
[1743390232862,0.01923706,82151.0,82150.0,0.1506564]
[1743390234083,0.01923706,82151.0,82150.0,0.1566564]
[1743390234565,0.01923706,82151.0,82150.0,0.1688284]
[1743390235442,0.01923706,82151.0,82150.0,0.28911323]
[1743390236614,0.0001682,82151.0,82150.0,0.28911323]
[1743390237722,0.0001682,82151.0,82150.0,0.28907323]
[1743390238772,0.0001682,82151.0,82150.0,0.30361408]
[1743390238992,0.0001682,82151.0,82150.0,0.38221408]
[1743390239229,0.0001682,82151.0,82150.0,0.54889891]
[1743390239768,0.01923524,82151.0,82150.0,0.54889891]
[1743390240075,0.01923524,82151.0,82150.0,0.54289891]
[1743390240279,0.00014105,82160.0,82159.0,0.27014185]
[1743390240521,0.00014105,82160.0,82159.0,0.51542668]
[1743390241531,0.00014105,82160.0,82159.0,0.53057124]
[1743390241963,0.00014105,82160.0,82159.0,0.53657124]
[1743390243000,0.00014105,82160.0,82159.0,0.54257124]
[1743390244370,0.00014105,82160.0,82159.0,0.52742668]
[1743390244773,0.00014105,82160.0,82159.0,0.40714185]
[1743390245224,0.00014105,82160.0,82159.0,0.55138185]
[1743390245659,0.00014105,82160.0,82159.0,0.67166668]
[1743390246732,0.00014105,82160.0,82159.0,0.67666668]
[1743390247061,0.00014105,82160.0,82159.0,0.67166668]
[1743390250111,0.01920562,82160.0,82159.0,0.67166668]
[1743390252285,0.01920562,82160.0,82159.0,0.52742668]
[1743390252486,0.01920562,82160.0,82159.0,0.67162668]
[1743390254237,0.01920562,82160.0,82159.0,0.67162668]
[1743390254821,0.01920562,82160.0,82159.0,0.67662668]
[1743390256466,0.01920562,82160.0,82159.0,1.09592668]
[1743390257120,0.00014105,82160.0,82159.0,1.09592668]
[1743390257481,5e-08,82160.0,82159.0,1.54942668]
[1743390257662,0.00016825,82160.0,82159.0,1.54942668]
[1743390258270,0.00016825,82160.0,82159.0,1.54342668]
[1743390258903,0.00016825,82160.0,82159.0,1.54942668]
[1743390261091,0.00016825,82160.0,82159.0,1.27672668]
[1743390261291,0.00016825,82160.0,82159.0,1.42088668]
[1743390263130,0.00016825,82160.0,82159.0,2.05308668]
[1743390267614,0.00016825,82160.0,82159.0,1.72308668]
[1743390268018,0.00016825,82160.0,82159.0,1.72304668]
[1743390269661,0.00016825,82160.0,82159.0,1.72338308]
[1743390270288,0.01923183,82160.0,82159.0,1.72338308]
[1743390271318,0.01923183,82160.0,82159.0,1.72838308]
[1743390272088,0.01923183,82160.0,82159.0,1.72338308]
[1743390274035,0.01923183,82160.0,82159.0,1.57926308]
[1743390274180,0.01923183,82160.0,82159.0,1.72338308]
[1743390276754,0.01923183,82160.0,82159.0,1.72838308]
[1743390277158,0.00016825,82160.0,82159.0,1.72838308]
[1743390277380,0.00016825,82160.0,82159.0,1.75338308]
[1743390277580,0.00016825,82160.0,82159.0,2.18188308]
[1743390279364,0.00016825,82160.0,82159.0,2.21979749]
[1743390279601,0.00016825,82160.0,82159.0,2.05338308]
[1743390282243,2.5e-07,82160.0,82159.0,2.09125241]
[1743390282437,2.5e-07,82160.0,82159.0,2.05338308]